Cogmind - Beta 14 @@@ ROGUE MODE // 2024.11.18 @ 22:39:11 Player: Zeldest Result: Destroyed by L-41 Fighter with Axe Performance ------------- Evolutions (3) 1500 Regions Visited (8) 1600 Robots Destroyed (60) 300 Value Destroyed (1655) 1655 Prototype IDs (2) 40 Alien Tech Used (0) 0 Bonus (-137) -137 TOTAL SCORE: 4958 Bonus ------- High Alert Combat Kills 24 Friendly Fire -161 Cogmind --------- Core Integrity 0/700 Matter 300/300 Energy 100/100 System Corruption 14% Temperature Cool (0) Movement Core (100) Ox1 Location -7/Storage Parts ------- > --- POWER (1) -------- (None) > --- PROPULSION (2) --- (None) > --- UTILITY (8) ------ Small Storage Unit Transport Network Coupler > --- WEAPON (2) ------- (None) > --- INVENTORY (8) ---- Improved Light Armor Plating Drone Bay (2/2) Drone Bay (2/2) Heavy Ion Cannon Gauss Rifle Gauss Rifle Gauss Rifle Improved Datajack Peak State ------------ > --- POWER ------------ Nuclear Core > --- PROPULSION ------- Wheel Armored Wheel > --- UTILITY ---------- Small Storage Unit Transport Network Coupler Hardened Medium Armor Plating Hardened Medium Armor Plating Drone Bay Drone Bay Drone Bay Drone Bay > --- WEAPON ----------- Gauss Rifle Heavy Hammer > --- INVENTORY -------- Improved Light Armor Plating Drone Bay Drone Bay Heavy Ion Cannon Gauss Rifle Gauss Rifle Gauss Rifle Improved Datajack [Rating: 43] Favorites ----------- Power Heavy Ion Engine Engine Heavy Ion Engine Power Core Nuclear Core Propulsion Carbon-fiber Leg Treads Medium Treads Leg Carbon-fiber Leg Wheel Wheel Flight Unit VTOL Module Utility Hardened Light Armor Plating Device Seismic Detector Storage Large Storage Unit Processor Transport Network Coupler Protection Hardened Light Armor Plating Weapon Particle Cannon Energy Gun Shock Rifle Energy Cannon Particle Cannon Ballistic Gun Gauss Rifle Ballistic Cannon Light Cannon Launcher Advanced EMP Blaster Impact Weapon Heavy Hammer Build | -11 -10 -10 -9 -8 -7 -7 -7 -7 ------- Run | Yrd Mat Min Mat Mat Fac Was Fac Sto Slots Evolved 6 | . . . 2 2 2 . . . Power . | . . . . . . . . . Propulsion . | . . . . . . . . . Utility 6 | . . . 2 2 2 . . . Weapon . | . . . . . . . . . Parts Attached 84 | 4 7 3 13 21 4 3 18 11 Power 11 | 1 1 1 2 3 . . 3 . Engine 7 | 1 1 1 2 2 . . . . Core 4 | . . . . 1 . . 3 . Reactor . | . . . . . . . . . Propulsion 23 | 2 2 2 5 4 2 . 4 2 Treads 1 | . . . . . 1 . . . Leg 8 | 2 . . 2 4 . . . . Wheel 12 | . 2 2 3 . 1 . 2 2 Hover . | . . . . . . . . . Flight 2 | . . . . . . . 2 . Utility 31 | . 2 . 3 9 1 . 7 9 Device 18 | . . . 1 6 1 . 2 8 Storage 4 | . 1 . . 1 . . 1 1 Processor 1 | . . . . . . . 1 . Hackware . | . . . . . . . . . Protection 8 | . 1 . 2 2 . . 3 . Artifact . | . . . . . . . . . Weapon 19 | 1 2 . 3 5 1 3 4 . Energy Gun 2 | 1 . . . 1 . . . . Energy Cannon 6 | . 2 . . 2 1 . 1 . Ballistic Gun 3 | . . . 1 . . . 2 . Ballistic Cannon 4 | . . . 1 2 . 1 . . Launcher 3 | . . . 1 . . 2 . . Special Weapon . | . . . . . . . . . Impact Weapon 1 | . . . . . . . 1 . Slashing Weapon . | . . . . . . . . . Piercing Weapon . | . . . . . . . . . Special Melee Weapon . | . . . . . . . . . Unidentified Prototypes 2 | . . . 1 1 . . . . Corrupted Parts 1 | . . . . 1 . . . . System Corruption 5 | . . . . 5 . . . . Parts Lost 26 | . . 1 3 4 1 5 3 9 Power 3 | . . 1 . . . . 1 1 Propulsion 6 | . . . 2 1 . . 1 2 Utility 13 | . . . . 3 1 5 . 4 Weapon 4 | . . . 1 . . . 1 2 Highest Loss Streak 9 | . . 1 2 4 1 3 1 9 To Critical Strikes . | . . . . . . . . . Average Slot Usage (%) 79 | . 66 98 98 95 76 48 43 73 Engine 6 | . 14 13 11 7 7 3 . . Core 1 | . . . . . . . 4 6 Leg 7 | . 17 . 8 17 1 . . . Wheel 8 | . 10 26 13 . 6 7 8 13 Device 13 | . . . 11 25 22 17 1 7 Storage 7 | . 4 14 11 9 7 4 2 5 Protection 14 | . 2 14 22 15 15 7 11 15 Energy Gun 1 | . 11 . . 3 . . . . Energy Cannon 9 | . 5 28 8 10 15 3 1 . Ballistic Gun 1 | . . . 2 . . . 3 6 Ballistic Cannon 1 | . . . 5 2 . . . . Launcher 1 | . . . 4 2 . 3 . . Impact Weapon 1 | . . . . . . . 3 7 Peak Build Rating 43 | 4 10 11 19 30 33 39 26 43 Average Rating 19 | 2 5 9 14 24 30 24 15 27 On Entrance 15 | . 4 10 11 19 28 33 9 23 Naked Turns . | . . . . . . . . . Heaviest Build 114 | 5 36 36 45 110 114 114 34 59 Greatest Support 32 | 20 20 20 32 30 28 28 28 24 Greatest Overweight (x) 6 | 1 1 3 4 4 4 4 6 2 Average Overweight (x) 1 | . . 1 1 1 3 1 . 1 Largest Inventory Capacity 25 | 5 15 15 15 25 25 25 10 8 Average Capacity 13 | 5 7 15 15 15 25 17 6 7 Most Carried 16 | . 7 9 10 14 15 16 6 8 Average Carried 7 | . 3 7 6 10 12 10 4 6 Final Capacity 25 | 5 15 15 15 25 25 5 5 8 Final Carried 14 | . 7 9 9 13 14 5 5 8 Class Distribution -------------------- 81% | Mutant 17% | Scavenger-Mutant Dominant Class ---------------- Mutant | -10/Materials Mutant | -10/Mines Mutant | -9/Materials Mutant | -8/Materials Mutant | -7/Factory Mutant | -7/Waste Mutant | -7/Factory Mutant | -7/Storage Resources | -11 -10 -10 -9 -8 -7 -7 -7 -7 ----------- Run | Yrd Mat Min Mat Mat Fac Was Fac Sto Matter Collected 1688 | 146 43 141 302 288 153 . 365 250 Remotely 76 | . . . . 76 . . . . Salvage Created 2429 | . 43 19 602 265 318 . 719 463 Parts 101 | . 4 . 31 11 15 . 30 10 Haulers Intercepted 2 | . . . . . . . 2 . Recyclers Shooed 3 | . . . 3 . . . . . Parts Field Recycled . | . . . . . . . . . Retrieved Matter . | . . . . . . . . . Parts Self-Destructed . | . . . . . . . . . Prevented . | . . . . . . . . . Kills | -11 -10 -10 -9 -8 -7 -7 -7 -7 ------- Run | Yrd Mat Min Mat Mat Fac Was Fac Sto Combat Hostiles Destroyed 42 | . 3 1 9 8 8 . 8 5 Melee 3 | . . . . . . . 2 1 Guns 14 | . 3 . 5 . . . 3 3 Cannons 19 | . . 1 4 6 7 . 1 . AOE 2 | . . . . 2 . . . . Classes Destroyed 11 | . 1 1 3 1 . . 4 1 Worker 7 | . . . . . . . 7 . Builder 3 | . . . . . . . 3 . Hauler 2 | . . . . . . . 2 . Recycler 7 | . . . 3 . . . 2 2 Drone 1 | . . . . . . . . 1 Swarmer 12 | . 3 . . 2 3 . 4 . Grunt 18 | . . . 5 3 5 . 2 3 Duelist 1 | . . . . 1 . . . . Sentry 9 | . . . 4 2 . . 1 2 Hunter 1 | . . . . . . . 1 . Assembled 1 | . . 1 . . . . . . Best Kill Streak 8 | . 3 1 8 2 5 . 7 3 Combat Bots Only 5 | . 3 1 5 2 5 . 2 2 Max Kills in Single Turn 2 | . 1 1 1 1 1 . 1 2 Gunslinging . | . . . . . . . . . Exploded 1 | . . . . 1 . . . . Melee 1 | . . . . . . . 1 1 Uniques/NPCs Destroyed . | . . . . . . . . . Combat | -11 -10 -10 -9 -8 -7 -7 -7 -7 -------- Run | Yrd Mat Min Mat Mat Fac Was Fac Sto Hostile Shots Fired 474 | . 23 27 58 84 28 8 82 164 Missed 120 | . 7 6 14 20 7 1 33 32 Damage Taken 5232 | . 131 375 574 1037 387 321 651 1756 Core 1046 | . . 83 55 205 13 59 246 385 Absorbed by Shields . | . . . . . . . . . Core Remaining (%) 78 | 100 . 66 86 62 . . . . Volleys Fired 192 | . 5 3 49 43 18 . 33 41 Largest 2 | . 1 2 2 2 2 . 1 1 Hottest 136 | . 50 136 136 103 133 . 68 28 Shots Fired 248 | . 5 6 64 64 36 1 32 40 Gun 114 | . 5 . 35 8 . . 26 40 Cannon 129 | . . 6 28 53 36 . 6 . Launcher 5 | . . . 1 3 . 1 . . Special . | . . . . . . . . . Kinetic 156 | . . . 55 35 . . 26 40 Thermal 79 | . 5 6 8 18 36 . 6 . Explosive . | . . . . . . . . . Electromagnetic 13 | . . . 1 11 . 1 . . Robot Hit Streak 12 | . 1 2 12 7 10 8 10 12 Robot Miss Streak 5 | . 1 3 3 5 3 . 3 2 Penetration Max 1 | . . . . . . . . 1 Secondary Targets . | . . . . . . . . . Shots Hit Robots 194 | . 3 2 46 38 25 1 39 40 Core Hits 74 | . 3 1 20 11 12 . 13 14 Critical Kills 2 | . . . . . . . 2 . Critical Parts Destroyed 8 | . . . . . . . 6 2 Critical Strikes 12 | . . . 1 1 . . 8 2 Destroy 1 | . . . . . . . . 1 Blast 2 | . . . 1 1 . . . . Smash 9 | . . . . . . . 8 1 Melee Attacks 39 | . . . . . . . 27 12 Impact 39 | . . . . . . . 27 12 Slashing . | . . . . . . . . . Piercing . | . . . . . . . . . Sneak Attacks 13 | . . . . . . . 12 1 Combat Hostiles . | . . . . . . . . . Follow-up Attacks . | . . . . . . . . . Damage Inflicted 5042 | . 36 46 800 804 614 2 1722 1018 Guns 1550 | . 36 . 399 90 . . 283 742 Cannons 1758 | . . 41 373 628 614 . 102 . Explosions 113 | . . . 25 86 . 2 . . Melee 1611 | . . . . . . . 1335 276 Ramming 10 | . . 5 3 . . . 2 . Kinetic 2117 | . . . 668 424 . . 283 742 Thermal 1101 | . 36 41 104 204 614 . 102 . Explosive . | . . . . . . . . . Electromagnetic 203 | . . . 25 176 . 2 . . Impact 1611 | . . . . . . . 1335 276 Slashing . | . . . . . . . . . Piercing . | . . . . . . . . . Highest Corruption 19 | . . 1 1 5 . 19 19 14 Average Corruption 10 | . . 1 1 4 . 10 17 14 Corruption Purged 10 | . . . . 5 . . 5 . Corruption Blocked . | . . . . . . . . . Effects 68 | . . . 2 14 . 10 32 10 Message Errors 17 | . . . . 1 . 5 6 5 Matter Fused 17 | . . . . 7 . 2 8 . Heat Flow Errors 7 | . . . 1 1 . . 3 2 Energy Discharges 6 | . . . . . . . 6 . Parts Fused 2 | . . . . 1 . . 1 . Data Loss (minor) 8 | . . . . 2 . 1 4 1 Data Loss (major) 3 | . . . . 1 . . 2 . Misfires 3 | . . . 1 1 . 1 . . Alerts 2 | . . . . . . . 1 1 Misdirections 1 | . . . . . . 1 . . Weapon Failures 2 | . . . . . . . 1 1 Overload Shots . | . . . . . . . . . Overflow Damage 775 | . . . 13 6 . . 691 65 Projectiles 24 | . . . . . . . 24 . Explosions 19 | . . . 13 6 . . . . Melee 732 | . . . . . . . 667 65 Knockbacks 18 | . . . 4 6 . . 7 1 Impact 7 | . . . . . . . 6 1 Kinetic 9 | . . . 3 6 . . . . Secondary 2 | . . . 1 . . . 1 . Self-Inflicted Damage 27 | . . 2 24 . . . 1 . Shots 1 | . . . 1 . . . . . Rammed 3 | . . 1 1 . . . 1 . Targets Rammed 3 | . . 1 1 . . . 1 . Kicked . | . . . . . . . . . Crushed . | . . . . . . . . . Highest Temperature 309 | . 20 270 309 147 128 . 253 291 Average Temperature 108 | . 10 140 141 60 67 . 83 102 Received Heat Transfer 1638 | . . . 258 396 117 . 111 756 Effects 5 | . . . 5 . . . . . Shutdowns 1 | . . . 1 . . . . . Energy Bleed 2 | . . . 2 . . . . . Interference 2 | . . . 2 . . . . . Siege Activations . | . . . . . . . . . Robots Corrupted 9 | . . . . . . . 8 1 Combat Hostiles 3 | . . . . . . . 2 1 Parts Fried 15 | . . . . . . . 14 1 Impact Corruptions 24 | . . . . . . . 21 3 Robots Melted 1 | . . . . . 1 . . . Combat Hostiles 1 | . . . . . 1 . . . Parts Melted 4 | . . . . . 4 . . . Heat Transferred 1887 | . 111 74 185 370 962 . 185 . Parts Sabotaged . | . . . . . . . . . Parts Stolen . | . . . . . . . . . Parts Stripped . | . . . . . . . . . Power Chain Reactions . | . . . . . . . . . Alert | -11 -10 -10 -9 -8 -7 -7 -7 -7 ------- Run | Yrd Mat Min Mat Mat Fac Was Fac Sto Peak Influence 470 | . 105 40 213 149 253 18 470 247 Initial 167 | . . 40 11 7 6 18 . 167 Average 96 | . 38 39 74 46 84 14 242 207 Maximum Alert Level 2 | . . . 1 . 1 . 2 1 Low Security (%) 82 | 100 100 100 98 100 78 100 38 28 Level 1 16 | . . . 1 . 21 . 56 71 Level 2 . | . . . . . . . 5 . Level 3 . | . . . . . . . . . Level 4 . | . . . . . . . . . Level 5 . | . . . . . . . . . High Security . | . . . . . . . . . Max Security . | . . . . . . . . . Squads Dispatched 7 | . 1 . 1 . 1 . 1 3 Investigation 1 | . . . . . . . 1 . Extermination 1 | . . . . . . . . 1 Reinforcement 5 | . 1 . 1 . 1 . . 2 Assault . | . . . . . . . . . Garrison . | . . . . . . . . . Intercept . | . . . . . . . . . Searches Triggered . | . . . . . . . . . Construction Impeded 2 | . . . 1 . . . . 1 Haulers Reinforced . | . . . . . . . . . Active Scanning Responses . | . . . . . . . . . Cargo Convoy Interrupts . | . . . . . . . . . Stealth | -11 -10 -10 -9 -8 -7 -7 -7 -7 --------- Run | Yrd Mat Min Mat Mat Fac Was Fac Sto Distress Signals 4 | . 1 . 1 1 . . . 1 Communications Jammed . | . . . . . . . . . Distress Signals . | . . . . . . . . . Times Spotted 90 | . 8 3 15 21 13 6 13 11 Peak Tracking Total 8 | . 6 3 5 8 5 6 4 7 Tactical Retreats 7 | . 1 . . 1 2 . 2 1 Traps | -11 -10 -10 -9 -8 -7 -7 -7 -7 ------- Run | Yrd Mat Min Mat Mat Fac Was Fac Sto Traps Triggered 8 | . . . 2 . 1 . 5 . Indirectly . | . . . . . . . . . Trap Hack Attempts . | . . . . . . . . . Triggered . | . . . . . . . . . Disarmed . | . . . . . . . . . Reprogrammed . | . . . . . . . . . Reused . | . . . . . . . . . Traps Extracted . | . . . . . . . . . Installed . | . . . . . . . . . Triggered . | . . . . . . . . . Machines | -11 -10 -10 -9 -8 -7 -7 -7 -7 ---------- Run | Yrd Mat Min Mat Mat Fac Was Fac Sto Machines Disabled 2 | . . . 1 . . . 1 . Max in Single Turn 1 | . . . 1 . . . 1 . Garrison Access 1 | . . . . . . . 1 . Machines Repaired . | . . . . . . . . . Machines Dismantled . | . . . . . . . . . Machines Sabotaged . | . . . . . . . . . Overloaded Fab Kills . | . . . . . . . . . Hacking | -11 -10 -10 -9 -8 -7 -7 -7 -7 --------- Run | Yrd Mat Min Mat Mat Fac Was Fac Sto Machines Accessed 13 | . 1 . 4 1 . . 5 2 Terminals 12 | . 1 . 4 1 . . 4 2 Fabricators . | . . . . . . . . . Repair Stations . | . . . . . . . . . Recycling Units . | . . . . . . . . . Scanalyzers . | . . . . . . . . . Garrison Access 1 | . . . . . . . 1 . Total Hacks 32 | . 2 . 14 3 . . 10 3 Successful 17 | . 1 . 9 2 . . 3 2 Failed 15 | . 1 . 5 1 . . 7 1 Catastrophic 1 | . . . . . . . 1 . Database Lockouts . | . . . . . . . . . Manual 24 | . 2 . 9 2 . . 9 2 Terminals 30 | . 2 . 14 3 . . 8 3 Fabricators . | . . . . . . . . . Repair Stations . | . . . . . . . . . Recycling Units . | . . . . . . . . . Scanalyzers . | . . . . . . . . . Garrison Access 2 | . . . . . . . 2 . Terminal Hacks 5 | . . . 3 1 . . . 1 Part Schematic 1 | . . . 1 . . . . . Open Door 1 | . . . . . . . . 1 Emergency Access Points 1 | . . . 1 . . . . . Unreport Threat 1 | . . . 1 . . . . . Locate Traps 1 | . . . . 1 . . . . Fabricator Hacks . | . . . . . . . . . Repair Station Hacks . | . . . . . . . . . Recycling Unit Hacks . | . . . . . . . . . Scanalyzer . | . . . . . . . . . Garrison Access Hacks . | . . . . . . . . . Unauthorized Hacks 12 | . 1 . 6 1 . . 3 1 Terminals 11 | . 1 . 6 1 . . 2 1 Track 1 | . . . 1 . . . . . Assimilate 1 | . . . . . . . 1 . Botnet 8 | . 1 . 4 1 . . 1 1 Operators 1 | . . . 1 . . . . . Fabricators . | . . . . . . . . . Repair Stations . | . . . . . . . . . Recycling Units . | . . . . . . . . . Scanalyzers . | . . . . . . . . . Garrison Access 1 | . . . . . . . 1 . Jam 1 | . . . . . . . 1 . Data Cores Recovered . | . . . . . . . . . Used . | . . . . . . . . . Hacking Detections 12 | . 1 . 4 1 . . 5 1 Full Trace Events . | . . . . . . . . . Feedback Events . | . . . . . . . . . Feedback Blocked . | . . . . . . . . . Robot Schematics Acquired . | . . . . . . . . . Robots Built . | . . . . . . . . . Authchips . | . . . . . . . . . Time . | . . . . . . . . . Total Robot Build Rating . | . . . . . . . . . Part Schematics Acquired 1 | . . . 1 . . . . . Parts Built . | . . . . . . . . . Authchips . | . . . . . . . . . Time . | . . . . . . . . . Total Part Build Rating . | . . . . . . . . . Parts Repaired . | . . . . . . . . . Time . | . . . . . . . . . Parts Recycled . | . . . . . . . . . Recycled Matter . | . . . . . . . . . Retrieved Matter . | . . . . . . . . . Retrieved Components . | . . . . . . . . . Parts Scanalyzed . | . . . . . . . . . Part Schematics Acquired . | . . . . . . . . . Parts Damaged . | . . . . . . . . . Bothacking | -11 -10 -10 -9 -8 -7 -7 -7 -7 ------------ Run | Yrd Mat Min Mat Mat Fac Was Fac Sto Used RIF Installer . | . . . . . . . . . Robots Hacked . | . . . . . . . . . Non-combat . | . . . . . . . . . Combat . | . . . . . . . . . Robot Hacks Applied . | . . . . . . . . . Relay Couplers Released . | . . . . . . . . . Fabnet Peak Effective % . | . . . . . . . . . Robots Rewired . | . . . . . . . . . Allies Hacked . | . . . . . . . . . Hacks Repelled . | . . . . . . . . . Allies | -11 -10 -10 -9 -8 -7 -7 -7 -7 -------- Run | Yrd Mat Min Mat Mat Fac Was Fac Sto Total Allies 1 | . . . . . . . 1 . Largest Group 1 | . . . . . . . 1 1 Highest-Rated Group 26 | . . . . . . . 26 26 Highest-Rated Ally 26 | . . . . . . . 26 26 Total Orders . | . . . . . . . . . Ally Attacks . | . . . . . . . . . Total Damage . | . . . . . . . . . Kills . | . . . . . . . . . Allies Corrupted . | . . . . . . . . . Allies Melted . | . . . . . . . . . Intel | -11 -10 -10 -9 -8 -7 -7 -7 -7 ------- Run | Yrd Mat Min Mat Mat Fac Was Fac Sto Robot Analysis Total . | . . . . . . . . . Derelict Logs Recovered . | . . . . . . . . . Drone Launches 14 | . . . . . . . . 14 Drone Recoveries 6 | . . . . . . . . 6 Exploration | -11 -10 -10 -9 -8 -7 -7 -7 -7 ------------- Run | Yrd Mat Min Mat Mat Fac Was Fac Sto Turns Passed 4449 | 46 281 348 772 1265 449 236 789 263 Spaces Moved 2367 | 39 208 343 388 409 200 178 489 113 Core 39 | 19 . . . . . . 20 . Treads 3 | . . . . . 3 . . . Legs 713 | 20 126 . 149 409 9 . . . Wheels 1515 | . 82 343 239 . 188 178 372 113 Hover . | . . . . . . . . . Flight 97 | . . . . . . . 97 . Fastest Speed 32 | 50 80 95 105 185 145 100 32 100 Average Speed 134 | 103 107 96 140 203 171 125 106 103 Slowest Speed 425 | 120 120 125 260 425 425 160 355 115 Overloaded Moves . | . . . . . . . . . Propulsion Burnouts . | . . . . . . . . . Robots Hopped . | . . . . . . . . . Cave-ins Triggered . | . . . . . . . . . Exploration Rate (%) 37 | 3 35 76 40 43 6 94 14 26 Regions Visited 8 Branch Regions 2 Pre-discovered Areas . | . . . . . . . . . Known Exits Taken . | . . . . . . . . . Unknown Exits Taken 6 | 1 1 1 1 1 . . 1 . Scrap Searched 1 | . . 1 . . . . . . Spaces Dug . | . . . . . . . . . Terrain Destroyed 3 | . . . . . 3 . . . Melee . | . . . . . . . . . Projectile 3 | . . . . . 3 . . . AOE . | . . . . . . . . . Terrain Rammed . | . . . . . . . . . Walls Destroyed . | . . . . . . . . . Machines Disabled . | . . . . . . . . . Actions | -11 -10 -10 -9 -8 -7 -7 -7 -7 --------- Run | Yrd Mat Min Mat Mat Fac Was Fac Sto Total 3314 | 42 257 351 551 775 274 191 674 199 Wait 516 | . 30 1 82 292 39 7 52 13 Move 2360 | 38 207 342 387 408 200 177 488 113 Hop . | . . . . . . . . . Pick Up 34 | . 6 1 9 8 4 . 6 . Fast Attach 44 | 4 4 2 3 7 2 1 12 9 Attach 17 | . . . 5 5 1 2 4 . Detach 16 | . 1 . 2 1 3 3 3 3 Swap 23 | . 3 1 5 9 1 . 2 2 Drop 30 | . 1 . 8 2 6 1 6 6 Fire 192 | . 5 3 49 43 18 . 33 41 Melee 39 | . . . . . . . 27 12 Ram 3 | . . 1 1 . . . 1 . Kick . | . . . . . . . . . Crush . | . . . . . . . . . Escape Stasis 40 | . . . . . . . 40 . Rewire . | . . . . . . . . . Trap . | . . . . . . . . . Miscellaneous . | . . . . . . . . . Route ------- -11/Scrapyard -10/Materials -10/Mines -9/Materials -8/Materials -7/Factory -7/Waste -7/Factory -7/Storage History --------- Turn | Location | Event 12 | -11/Scrapyard | Discovered new exit (range 15) 47 | -11/Scrapyard | Entered Materials 261 | -10/Materials | Discovered new exit (range 12) 315 | -10/Materials | Build established: Mutant 328 | -10/Materials | Entered Mines 564 | -10/Mines | Assembled infested the area 670 | -10/Mines | Discovered new exit (range 7) 676 | -10/Mines | Entered Materials 676 | -9/Materials | Evolved 2 slots: Utility x2 1259 | -9/Materials | Discovered new exit (range 15) 1448 | -9/Materials | Entered another Materials area 1448 | -8/Materials | Evolved 2 slots: Utility x2 1758 | -8/Materials | Build established: Scavenger-Mutant 1964 | -8/Materials | Lost 4 parts (1n3u) 2402 | -8/Materials | Build established: Mutant 2520 | -8/Materials | Discovered new exit (range 16) 2713 | -8/Materials | Entered Factory 2713 | -7/Factory | Evolved 2 slots: Utility x2 3162 | -7/Factory | Sucked down chute 3162 | -7/Factory | Entered Waste 3177 | -7/Waste | EMP discharged 3231 | -7/Waste | Spotted C-40 Crusher 3275 | -7/Waste | Crushed by Compactor (1 part destroyed, 2 dropped) 3277 | -7/Waste | EMP discharged 3277 | -7/Waste | System corruption reached 10% 3283 | -7/Waste | Crushed by Compactor (1 part destroyed) 3286 | -7/Waste | Crushed by Compactor (1 part destroyed, 1 dropped) 3289 | -7/Waste | Spotted C-40 Crusher 3294 | -7/Waste | Spotted C-40 Crusher 3305 | -7/Waste | Crushed by Compactor (0 parts destroyed, 1 dropped) 3317 | -7/Waste | Lost 3 parts (3u) 3330 | -7/Waste | Spotted C-40 Crusher 3343 | -7/Waste | Spotted C-40 Crusher 3361 | -7/Waste | Spotted C-40 Crusher 3377 | -7/Waste | EMP discharged 3378 | -7/Waste | Crushed by Compactor (1 part destroyed) 3378 | -7/Waste | Crushed by Compactor (1 part destroyed) 3389 | -7/Waste | Discovered new exit (range 10) 3398 | -7/Waste | Entered Factory 4047 | -7/Factory | Discovered new exit (range 9) 4187 | -7/Factory | Entered Storage 4187 | -7/Storage | Accompanied by 1 ally 4384 | -7/Storage | Lost 4 allies 4385 | -7/Storage | Core integrity fell below 50% 4446 | -7/Storage | Core integrity fell below 20% 4450 | -7/Storage | Destroyed by L-41 Fighter with Axe Last Messages --------------- 04426_ Gauss Rifle destroyed. 04427_ Drone destroyed. 04428_ K-01 Serf collects debris. 04430_ Critical hit (Burn: +37). 04432_ K-01 Serf collects debris. 04432_ Hrd. Medium Armor Plating destroyed. 04432_ Nuclear Core destroyed. 04435_ Arm. Wheel destroyed. 04435_ K-01 Serf collects debris. 04436_ Critical hit (Burn: +37). 04437_ ALERT: Rogue bot located, Programmers report to Storage Zone 2K. 04437_ Arm. Wheel destroyed. 04438_ K-01 Serf collects debris. 04438_ G-47 Trooper suffers critical hit (Smash). 04438_ Destroyed Imp. Heat Sink. 04438_ G-47 Trooper system corrupted by crushing effect. 04439_ G-47 Trooper system terminally corrupted. 04440_ DQ93PMSKK/CGJFQ2Z7H/U LMSKZGIZ# B8 04441_ K-01 Serf collects debris. 04450_ Hvy. Hammer destroyed. Map ----- +----------------------------------------------------+ | | | | | | | | | ????????????????????????????????????????????? | | ????????????????????????????????????????????? | | ????????????????????????????????????????????? | | ????????????????????????????????????????????? | | ????????????????????????????????????????????? | | ????????????????????????????????????????????? | | ????????????????????????????????????????????? | | ????????????????????????????????????????????? | | ????????????????????????????????????????????? | | ????????????????????????????????????????????? | | ????????????????????????????????????????????? | | ????????????????????????????????????????????? | | ????????????????????????????????????????????? | | ????????????????????????????????????????????? | | ????????????????????????????????????????????? | | ????????????????????????########????????????? | | ????????????????????????# #????????????? | | ????????????????????????# #????????????? | | ????????????????????????# #????????????? | | ????????????????????????# #????????????? | | ?????????????????###### #=kg #????????????? | | ????????? u g@l%% #????????????? | | ?????????????????## ###+#####???????????? | | ??????????????????#g ?# % """ #???????????? | | ???????????????? + ??## """ #???????????? | | ????????????? ##????#T """ #???????????? | | ????????????""""????????## #???????????? | | ?????????????????????????# #???????????? | | ?????????????????????????# = #??###+#????? | | ????????? ##### #####+###! #????? | | ????????? ] / + #????? | | ????????? ########### % #! #????? | | ??????????????#####??######T# % # #????? | | ?????????????? #??# #=+ +%! % #????? | | ?????????????? #??# #!=%# ! ! #????? | | ?????????????? #??# # # ######+#????? | | ??????????????# #??########^^^ +????? | | ??????????????# #?????????#^^^ #????? | | ??????????????# #?????????#^^^! #????? | | ??????????????# #?????????# !/! +????? | | ??????????????# #?????????# ! ####????? | | ??????????????+ #???????? + #???????? | | ??????????????# #???????#T# #???????? | | ??????????????# #???????### #######???????? | | ??????????????+ ########### #?????????????? | | ??????????????# #?????????????? | +----------------------------------------------------+ Best States ------------- Heat Dissipation 62 Energy Generation 14 Energy Capacity 280 Matter Stores 300 Matter Capacity 300 Sight Range 16 Terrain Scan Density 10 Base Temperature (-) 100 Armor Coverage 600 Evasion (%) 63 Recoil Reduction 1 Item Schematics ----------------- Huge Storage Unit | -9/Materials | Hacked Robot Schematics ------------------ None Fabricated ------------ Nothing Alien Tech Used ----------------- None Achievements -------------- None Challenges ------------ None Game ------ Seed MicroTargetingDrive Manual? 0 Play Time 00:45:39 Cumulative 49.9 hours Start 2024.11.18 @ 21:49:54 End 2024.11.18 @ 22:39:11 Sessions 1 Manual Loads 0 Difficulty Rogue Special Mode None Game No. 94 Rogue 94 Adventurer 0 Explorer 0 Win Type - Total 0 Types 0/0/0/0/0/0/0/0/0 Lore% 15 Gallery% 34 Achievement% 32 Wizard Run 0 Options --------- Layout 0 ASCII 0 Keyboard 1 Movement Numpad Keybinds 0 Fullscreen 1 Font 18/SmallcapsGlow Map View 76x50 Zoom Use 0% Tactical HUD 1 Map Filters NONE Filters NONE Steam 1 RUN: 1ff341d3-251b-4be5-b7af-0adf6c339bd3